[Event "Polish Youth G18 Championship 2023"]
[Site "Jastrzebia Gora"]
[Date "2023.03.13"]
[Round "3.1"]
[White "Mroz, Lena"]
[Black "Starosta, Martyna"]
[Result "0-1"]
[ECO "C88"]
[WhiteElo "1635"]
[BlackElo "2138"]
[Annotator "TA"]
[PlyCount "112"]
[EventDate "2023.03.11"]
[EventType "swiss"]
[EventCountry "POL"]
[SourceTitle "playchess.com"]
[Source "ChessBase"]
[SourceQuality "1"]
[TimeControl "40/5400+30:1800+30"]

{[%evp 17,112,14,22,16,12,0,0,-29,-16,-59,-50,-163,-163,-164,-154,-151,-125,-154,-149,-195,-126,-210,-70,-386,-329,-325,-327,-292,-149,-357,-252,-379,-254,-244,-166,-169,-166,-158,-152,-147,-133,-349,-193,-310,-177,-284,-277,-253,-254,-256,-144,-131,-127,-133,-80,-73,-81,-139,-16,-177,-189,-168,-79,-231,0,-196,0,-646,-621,-628,-612,-671,-669,-643,-641,-593,-537,-939,-388,-621,-664,-649,-637,-614,-592,-769,-860,-1367,-1241,-1510,-1475,-1670,-1339,-5808,-5227,-6179,-5845]} 1. e4 {[%emt 0:00:02]} e5 {[%emt 0:00:03]} 2. Nf3 {[%emt 0:00:08]} Nc6 {[%emt 0:00:05]} 3. Bb5 {[%emt 0:00:13]} a6 {[%emt 0:00:04]} 4. Ba4 {[%emt 0:00:09]} Nf6 {[%emt 0:00:05]} 5. O-O {[%emt 0:00:23]} Be7 {[%emt 0:00:04]} 6. Re1 {[%emt 0:00:24]} b5 {[%emt 0:00:05]} 7. Bb3 O-O {[%emt 0:00:06]} 8. a4 {[%emt 0:00:30] is currently scoring better than 8.c3.} Bb7 {[%emt 0:01:09]} 9. c3 {[%emt 0:03:25]} d5 {[%emt 0:12:07]} 10. exd5 {[%emt 0:11:48] C88: Closed Ruy Lopez: Anti-Marshall Systems.} Nxd5 {[%emt 0:00:05]} 11. d4 {[%emt 0:15:52]} exd4 {[%emt 0:01:09]} 12. Nxd4 {[%emt 0:00:22] The position is equal.} Nxd4 {[%emt 0:00:55]} 13. Qxd4 {[%emt 0:00:55]} (13. cxd4 {simplifies} Bb4 14. Bd2 Bxd2 15. Nxd2 bxa4 16. Rxa4 Nb6 17. Ra1) 13... Re8 {[%emt 0:07:43][%cal Oe7c5] [#] ...Bc5! would be deadly.} 14. Rd1 $146 {[%emt 0:12:52]} (14. Nd2 $15) ({Predecessor:} 14. Be3 Nxe3 15. Qxe3 Bc5 16. Qxe8+ Qxe8 17. Rxe8+ Rxe8 18. Kf1 Be4 {0-1 Sprenger,M (2190)-Schlegel,I (1960) Zuerich op-A 41st 2017 (5)}) 14... c5 $1 $19 {[%emt 0:02:19]} 15. Qg4 {[%emt 0:02:32]} c4 {[%emt 0:01:50]} 16. Bc2 {[%emt 0:01:15]} Qb6 {[%emt 0:04:25]} 17. a5 {[%emt 0:05:53]} Qc7 {[%emt 0:09:09]} (17... Nf6 18. Bxh7+ Kf8 19. axb6 $11) 18. Nd2 {[%emt 0:07:48]} (18. Bh6 $17 Qe5 19. Nd2) 18... g6 {[%emt 0:03:02]} (18... Nf6 $19 19. Qh4 Bd6) 19. Nf1 {[%emt 0:04:57]} (19. Nf3 $17) 19... Bf6 {[%emt 0:05:41]} ({Black should try} 19... Bc5 $19 20. b4 Ba7 21. Rxd5 Bxd5) 20. Bg5 $2 {[%emt 0:14:45][%mdl 8192]} (20. Qf3 $1 $15 Qe5 21. Bd2) 20... Bxg5 {[%emt 0:02:43]} 21. Qxg5 {[%emt 0:00:08]} Nf4 {[%emt 0:00:28]} 22. Qg4 {[%emt 0:11:24]} Bxg2 {[%emt 0:08:23]} (22... Nxg2 $19 {And now ...Nf4 would win.} 23. Ng3 Nf4) 23. Ne3 $2 {[%emt 0:02:07]} (23. Rd4 $17 {is the only way for White.} Bxf1 24. Qxf4 Qxf4 25. Rxf4) 23... Bc6 {[%emt 0:05:57]} 24. Rd2 {[%emt 0:01:30]} (24. Kf1 $142) 24... Qe5 {[%emt 0:01:22]} 25. Rad1 {[%emt 0:02:10]} Kh8 {[%emt 0:10:42]} 26. Qg3 {[%emt 0:01:08] [#]} Rad8 $3 {[%emt 0:02:02][%mdl 576] Deflection} 27. Kf1 {[%emt 0:00:34] White is weak on the light squares} Rxd2 {[%emt 0:02:30]} 28. Rxd2 {[%emt 0:00:02]} Qf6 {[%emt 0:02:43] Black is more active.} 29. Kg1 $2 {[%emt 0:01:05]} (29. Rd4 $17 {was worth a try.} Nh5 30. Qh4) 29... Nh5 {[%emt 0:02:16]} (29... b4 $142 30. Bd1 bxc3 31. bxc3 Nd3) 30. Qh3 {[%emt 0:00:30]} (30. Qg4 {was forced.}) 30... Kg8 {[%emt 0:07:33]} (30... Qg5+ $142 31. Kf1 f5) 31. Bd1 {[%emt 0:00:29]} (31. Kf1 $142) 31... Nf4 {[%emt 0:00:26]} 32. Qg3 {[%emt 0:00:16]} Nd3 {[%emt 0:00:36]} 33. Be2 {[%emt 0:00:41]} Ba8 {[%emt 0:03:31]} ({Black should play} 33... Qd8 $19 {[%cal Od3f4]} 34. h4 Qxa5 35. Bxd3 cxd3 36. Rxd3 Qa1+ 37. Nf1 Qxb2) 34. Bxd3 $17 {[%emt 0:00:29] Strongly threatening Bf1.} cxd3 {[%emt 0:00:01]} 35. Rxd3 {[%emt 0:00:33] [#]} Qf5 $3 $40 {[%emt 0:02:01][%mdl 640] Black wants a kill.} 36. Rd1 {[%emt 0:00:34]} Qe4 {[%emt 0:00:54][%csl Ga8][%cal Re4h1]} 37. Kf1 {[%emt 0:00:25]} (37. Qg2 $142) 37... f5 {[%emt 0:01:25]} (37... b4 $17 {aiming for ...h5.} 38. c4 Kg7) 38. f4 $2 {[%emt 0:00:39]} Bc6 {[%emt 0:01:54]} ({Don't do} 38... Qxe3 39. Qxe3 Rxe3 40. Rd8+ Kg7 41. Rxa8 $14) 39. Kf2 {[%emt 0:00:08]} Kf7 {[%emt 0:01:26]} (39... b4 $19 {is more deadly.} 40. c4 b3) 40. Rd6 $2 {[#]} (40. b4 $17) 40... Re6 $2 {[%emt 0:00:00]} ({Better is} 40... b4 $1 $19 {Threatens to win with ...bxc3.} 41. c4 b3) 41. Rd2 $2 {[%emt 0:04:22] [#]} (41. Rxe6 $11 Kxe6 42. Nf1) 41... g5 $2 {[%emt 0:07:05]} 42. Qh3 {[%emt 0:09:58][%mdl 8192]} (42. Rd4 $11 Qb1 43. Qh3 Qxb2+ 44. Kf1 Qc1+ 45. Rd1 Qxc3 46. Qxh7+ Qg7 47. Qxg7+ (47. Qxf5+ Rf6 $17 {[%mdl 64] Skewer, Deflection}) 47... Kxg7 48. Nxf5+ Kg6 49. Nd4) 42... Qxf4+ $19 {[%emt 0:02:07]} 43. Ke2 {[%emt 0:00:18]} Kg6 {[%emt 0:04:31]} 44. Rd8 {[%emt 0:05:19]} h6 {[%emt 0:01:07]} 45. Rd4 {[%emt 0:07:54]} Qe5 {[%emt 0:04:08]} 46. Kd2 {[%emt 0:01:46]} f4 {[%emt 0:01:26]} 47. Nc2 {[%emt 0:01:00]} Qe2+ {[%emt 0:03:20]} 48. Kc1 {[%emt 0:00:05]} Bg2 {[%emt 0:01:57] Black is clearly winning.} 49. Qd3+ {[%emt 0:00:34]} Qxd3 {[%emt 0:00:10]} 50. Rxd3 {[%emt 0:00:06][%mdl 4096] Endgame KRB-KRN} Be4 {[%emt 0:01:26]} 51. Rd2 {[%emt 0:00:31]} Bxc2 {[%emt 0:00:06]} 52. Rxc2 {[%emt 0:00:35]} f3 {[%emt 0:00:17] ( -> ...Re1+)} 53. Rf2 {[%emt 0:00:21]} g4 {[%emt 0:00:15]} 54. b3 {[%emt 0:00:57]} Kg5 {[%emt 0:00:18] ...Kf4 is the strong threat.} 55. c4 {[%emt 0:00:52]} bxc4 {[%emt 0:00:06]} 56. bxc4 {[%emt 0:00:04]} Kf4 {[%emt 0:00:26] A fantastic game!   Weighted Error Value: White=1.00/Black=0.60} 0-1

[Event "Polish Youth G18 Championship 2023"]
[Site "Jastrzebia Gora"]
[Date "2023.03.13"]
[Round "3.2"]
[White "Jedrzejko, Martyna"]
[Black "Zabrzanska, Weronika"]
[Result "1/2-1/2"]
[ECO "C54"]
[WhiteElo "1629"]
[BlackElo "2021"]
[Annotator "TA"]
[PlyCount "71"]
[EventDate "2023.03.11"]
[EventType "swiss"]
[EventCountry "POL"]
[SourceTitle "playchess.com"]
[Source "ChessBase"]
[SourceQuality "1"]
[TimeControl "40/5400+30:1800+30"]

{[%evp 13,71,50,42,23,22,17,17,29,29,17,43,-19,-16,-34,-41,-20,-14,-27,-26,-26,-25,-16,-29,-24,-30,-29,-25,-25,-29,-101,7,7,145,162,158,135,167,-34,-48,-29,-34,-45,0,0,0,0,0,0,0,0,0,0,0,0,0,0,0,0,0,0]} 1. e4 {[%emt 0:00:04]} e5 {[%emt 0:00:36]} 2. Nf3 {[%emt 0:00:11]} Nc6 {[%emt 0:00:29]} 3. Bc4 {[%emt 0:00:14]} Bc5 {[%emt 0:00:15]} 4. c3 {[%emt 0:00:18]} Nf6 {[%emt 0:00:37][%cal Bg8f6,Bf6d5,Bd5b6][%mdl 32]} 5. d3 {[%emt 0:00:33]} O-O {[%emt 0:00:41]} 6. O-O {[%emt 0:00:18]} d5 {[%emt 0:00:31]} 7. exd5 {[%emt 0:01:02]} Nxd5 {[%emt 0:00:12]} 8. a4 {[%emt 0:02:06] C54: Giuoco Piano: 4 c3 Nf6, main lines with 5 d4 and 5 d3.} a5 {[%emt 0:08:46]} 9. Nbd2 {[%emt 0:00:51]} Nb6 {[%emt 0:02:25]} 10. Bb5 {[%emt 0:00:53]} Bg4 {[%emt 0:02:54]} 11. Ne4 {[%emt 0:01:56]} Bd6 {[%emt 0:05:47] [#]} 12. Bxc6 $146 {[%emt 0:06:19]} (12. Be3 $14) ({Predecessor:} 12. h3 Bh5 13. Re1 Na7 14. d4 exd4 15. Nxd6 Qxd6 16. Qxd4 Nxb5 17. axb5 Qxd4 18. Nxd4 {½-½ Esipenko,A (2720)-Alekseenko,K (2710) RUS-ch 74th Ufa 2021 (9)}) 12... bxc6 $11 {[%emt 0:00:49]} 13. Re1 {[%emt 0:00:55]} f5 {[%emt 0:10:41]} 14. Ng3 {[%emt 0:04:27]} Qd7 {[%emt 0:04:51]} 15. Qb3+ {[%emt 0:07:03]} Kh8 {[%emt 0:06:10]} 16. Nxe5 {[%emt 0:06:47]} Bxe5 {[%emt 0:03:42]} 17. Rxe5 {[%emt 0:00:08]} f4 {[%emt 0:01:17]} 18. Ne4 {[%emt 0:03:13] f3 is the strong threat.} Qxd3 {[%emt 0:09:28] aiming for ...Nd7.} 19. f3 $1 {[%emt 0:06:42] [#]} Bxf3 $1 {[%emt 0:13:35][%mdl 64] Demolition} 20. gxf3 {[%emt 0:01:43]} Qxf3 {[%emt 0:00:43]} 21. Qc2 {[%emt 0:02:12] [#] Repels Qe2} (21. Ng5 $2 Qg4+ 22. Kh1 (22. Kf1 $2 Rad8 $19) 22... h6 $19) (21. Bd2 $1 $11) 21... Rae8 {[%emt 0:02:04]} ({Black should play} 21... Nd7 $1 $17 {[%cal Rd7e5]} 22. Ng5 Qh5 23. Qxh7+ (23. Qe2 $2 f3 $19) 23... Qxh7 24. Nxh7 Nxe5 25. Nxf8 Rxf8) 22. Ng5 {[%emt 0:05:27][%csl Gg5][%cal Rc2h7]} Qg4+ {[%emt 0:02:16]} (22... Qh5 $11 23. Qxh7+ (23. Rxa5 $2 Re1+ {[%mdl 64] Deflection} 24. Kf2 Qxh2+ 25. Kxe1 Qxc2 $19) 23... Qxh7 24. Nxh7 Kxh7 25. Rxe8 (25. Rxa5 $2 f3 $19) 25... Rxe8) 23. Kh1 $16 {[%emt 0:05:07][%csl Gg5][%cal Rc2h7]} g6 {[%emt 0:10:51]} 24. h3 {[%emt 0:04:01]} (24. Rxa5 $2 Re1#) 24... Qg3 {[%emt 0:02:56]} 25. Qe4 {[%emt 0:04:22] [#]} (25. Rxa5 $2 Re1#) (25. Qe2 $18 Rd8 26. Qg4 {[%mdl 64] Decoy} (26. Rxa5 f3 $11)) 25... f3 $1 $15 {[%emt 0:01:59][%mdl 64] Deflection} 26. Nxf3 {[%emt 0:00:27]} Qxh3+ {[%emt 0:01:26]} 27. Kg1 {[%emt 0:00:09]} Qg3+ {[%emt 0:01:27]} (27... Rxe5 28. Qxe5+ Kg8 29. Nh2 $16 (29. Qxc7 Qg4+ 30. Kh2 Rxf3)) (27... Rd8 $5 28. Be3 (28. Bg5 $2 Rxf3 29. Re8+ Rxe8 $19) 28... Nc4 $17) 28. Kh1 {[%emt 0:00:13] The position is equal.} Rd8 {[%emt 0:03:28]} (28... Qxf3+ $2 29. Qxf3 Rxf3 30. Rxe8+ $18) ({Reject} 28... Qh3+ 29. Kg1 Rd8 30. Be3 (30. Bg5 $2 Rxf3 31. Re8+ Rxe8 $19) 30... Qg3+ 31. Kh1 $17) 29. Bg5 {[%emt 0:04:36]} Rxf3 {[%emt 0:01:45]} 30. Re8+ {[%emt 0:00:15]} (30. Bxd8 {is a self mate.} Qh3+ 31. Kg1 Rg3+ 32. Kf2 Qh2+) 30... Rxe8 {[%emt 0:02:03]} 31. Qxe8+ {[%emt 0:00:08]} Kg7 {[%emt 0:00:03]} 32. Qe7+ {[%emt 0:00:23]} Kg8 {[%emt 0:00:47]} 33. Qe6+ {[%emt 0:02:50]} Kg7 {[%emt 0:00:42]} 34. Qe7+ {[%emt 0:00:29]} Kg8 {[%emt 0:00:35] ( -> ...Qh3+)} 35. Qe6+ {[%emt 0:00:27]} Kg7 {[%emt 0:00:36]} 36. Qe7+ $1 {[%emt 0:00:11] An exciting game.   Weighted Error Value: White=0.16 (very precise) /Black=0.16 (very precise)} 1/2-1/2

[Event "Polish Youth G18 Championship 2023"]
[Site "Jastrzebia Gora"]
[Date "2023.03.13"]
[Round "3.3"]
[White "Skolska, Emilia"]
[Black "Kucharska, Helena"]
[Result "1-0"]
[ECO "C23"]
[WhiteElo "1586"]
[BlackElo "1779"]
[Annotator "NA RC COMBH"]
[PlyCount "81"]
[EventDate "2023.03.11"]
[EventType "swiss"]
[EventCountry "POL"]
[SourceTitle "playchess.com"]
[Source "ChessBase"]
[SourceQuality "1"]
[TimeControl "40/5400+30:1800+30"]

1. e4 {[%emt 0:00:02]} e5 {[%emt 0:00:53]} 2. Bc4 {[%emt 0:00:08]} Bc5 {[%emt 0:00:17]} 3. Nc3 {[%emt 0:00:19]} Nf6 {[%emt 0:04:24]} 4. d3 {[%emt 0:00:32]} a6 {[%emt 0:01:15]} 5. a4 {[%emt 0:02:19]} h6 {[%emt 0:02:09]} 6. f4 {[%emt 0:01:09]} d6 {[%emt 0:02:09]} 7. Nf3 {[%emt 0:00:55]} Bg4 {[%emt 0:00:50]} 8. fxe5 {[%emt 0:02:38]} dxe5 {[%emt 0:03:32]} 9. Bxf7+ {[%emt 0:00:42]} Ke7 {[%emt 0:03:41]} 10. Bd5 {[%emt 0:07:04]} c6 {[%emt 0:02:07]} 11. Bb3 {[%emt 0:00:33]} Rf8 {[%emt 0:02:00]} 12. Qe2 {[%emt 0:07:36]} Bxf3 {[%emt 0:03:41]} 13. Qxf3 {[%emt 0:01:38]} Nh7 {[%emt 0:02:46]} 14. Qg4 {[%emt 0:01:43]} Kd6 {[%emt 0:07:14]} 15. Qxg7 {[%emt 0:03:33]} Qh4+ {[%emt 0:05:15]} 16. g3 {[%emt 0:02:57]} Bf2+ {[%emt 0:07:31]} 17. Kd1 {[%emt 0:02:05]} Qh5+ {[%emt 0:04:21]} 18. g4 {[%emt 0:01:01]} Qh3 {[%emt 0:02:26]} 19. Qxh6+ {[%emt 0:00:21]} Qxh6 {[%emt 0:00:57]} 20. Bxh6 {[%emt 0:00:07]} Re8 {[%emt 0:00:57]} 21. Ke2 {[%emt 0:03:46]} Bh4 {[%emt 0:00:35]} 22. Rag1 {[%emt 0:01:42]} Ng5 {[%emt 0:01:26]} 23. Bxg5 {[%emt 0:00:16]} Bxg5 {[%emt 0:00:19]} 24. h4 {[%emt 0:00:06]} Bf4 {[%emt 0:00:45]} 25. g5 {[%emt 0:00:17]} Nd7 {[%emt 0:01:56]} 26. h5 {[%emt 0:01:49]} Nf8 {[%emt 0:01:40]} 27. h6 {[%emt 0:02:42]} Ne6 {[%emt 0:01:47]} 28. Bxe6 {[%emt 0:04:29]} Kxe6 {[%emt 0:01:17]} 29. g6 {[%emt 0:02:29]} Kf6 {[%emt 0:01:28]} 30. Rh5 {[%emt 0:03:44]} Bxh6 {[%emt 0:03:56]} 31. Rxh6 {[%emt 0:00:09]} Rg8 {[%emt 0:00:12]} 32. g7+ {[%emt 0:00:46]} Kf7 {[%emt 0:00:21]} 33. Rhg6 {[%emt 0:00:23]} Rae8 {[%emt 0:00:23]} 34. Nd1 {[%emt 0:00:24]} Re6 {[%emt 0:00:22]} 35. Rxe6 {[%emt 0:00:06]} Kxe6 {[%emt 0:00:04]} 36. Ne3 {[%emt 0:00:08]} Kf6 {[%emt 0:02:33]} 37. Nf5 {[%emt 0:00:08]} b5 {[%emt 0:00:26]} 38. Rh1 {[%emt 0:00:30]} a5 {[%emt 0:00:46]} 39. Rh8 {[%emt 0:00:12]} Kf7 {[%emt 0:00:06]} 40. Nh6+ {[%emt 0:00:00]} Kxg7 {[%emt 0:00:00]} 41. Rxg8+ {[%emt 0:00:22]} 1-0

[Event "Polish Youth G18 Championship 2023"]
[Site "Jastrzebia Gora"]
[Date "2023.03.13"]
[Round "3.4"]
[White "Goraj, Barbara"]
[Black "Lochina, Justyna"]
[Result "1-0"]
[ECO "A05"]
[WhiteElo "2130"]
[BlackElo "1645"]
[Annotator "TA"]
[PlyCount "61"]
[EventDate "2023.03.11"]
[EventType "swiss"]
[EventCountry "POL"]
[SourceTitle "playchess.com"]
[Source "ChessBase"]
[SourceQuality "1"]
[TimeControl "40/5400+30:1800+30"]

{[%evp 20,61,26,22,50,22,13,20,43,31,56,9,10,3,73,40,64,71,64,51,73,41,54,48,73,47,77,62,273,259,259,254,265,270,253,257,286,277,266,268,272,267,1454,905]} 1. Nf3 {[%emt 0:00:04]} Nf6 {[%emt 0:00:06]} 2. c4 {[%emt 0:00:15]} e6 {[%emt 0:02:05]} 3. Nc3 {[%emt 0:00:57]} d5 {[%emt 0:01:39]} 4. e3 {[%emt 0:00:46]} Be7 {[%emt 0:01:53]} 5. b3 {[%emt 0:00:28]} b6 {[%emt 0:01:56]} 6. Bb2 {[%emt 0:00:23]} Bb7 {[%emt 0:00:25]} 7. cxd5 {[%emt 0:00:37]} exd5 {[%emt 0:02:18]} 8. d4 {[%emt 0:00:58]} Nbd7 {[%emt 0:03:37]} 9. Bd3 {[%emt 0:01:18]} Ne4 {[%emt 0:10:22]} 10. O-O {[%emt 0:04:48]} O-O {[%emt 0:05:15]} 11. Rc1 {[%emt 0:01:09]} Ndf6 {[%emt 0:13:30] E14: Queen's Indian: Classical Variation (4 e3).} 12. Ne5 {[%emt 0:04:10]} Nxc3 {[%emt 0:07:15]} 13. Rxc3 {[%emt 0:01:38]} c5 {[%emt 0:04:26] The position is equal.} (13... Bd6 {is interesting.} 14. Rc1 Ne4 15. Qh5 Qg5) 14. Rc1 {[%emt 0:03:26]} Rc8 {[%emt 0:03:47] [#]} 15. Bf5 $146 {[%emt 0:04:48]} (15. dxc5 $14 Rxc5 16. Qe2) ({Predecessor:} 15. dxc5 bxc5 16. Nf3 Nd7 17. Qc2 h6 18. Ne5 Nxe5 19. Bxe5 Bd6 20. Bxd6 Qxd6 21. Rcd1 Qe5 22. Bf5 {0-1 Imbert,G (1722)-Percheron,A (1890) Paris-ch op-B 86th 2011 (2)}) 15... Rc7 $11 {[%emt 0:03:02]} 16. dxc5 {[%emt 0:07:49]} Bxc5 {[%emt 0:04:38]} (16... bxc5 $11 17. Qe2 Bd6) 17. Qd3 {[%emt 0:05:23][%cal Ob3b4]} h6 {[%emt 0:06:16]} 18. Rfd1 {[%emt 0:02:49] White is much more active.} Qe7 {[%emt 0:02:22]} 19. Nf3 {[%emt 0:04:02]} Re8 {[%emt 0:07:02]} 20. Nd4 {[%emt 0:05:11]} Bd6 {[%emt 0:05:37]} 21. Bh3 {[%emt 0:03:54]} Qe4 {[%emt 0:02:42]} 22. Qd2 {[%emt 0:06:32] Black must now prevent Nf5.} (22. Rxc7 {simplifies} Bxc7 23. Nf5 Qxd3 24. Rxd3 Ba6 25. Rd1) 22... Ng4 {[%emt 0:02:46] [#]} 23. g3 $1 {[%emt 0:02:59] Hoping for Rxc7.} Rec8 {[%emt 0:03:45] This move loses the game for Black.} (23... Qg6 $14) 24. Rxc7 {[%emt 0:07:14]} Rxc7 {[%emt 0:01:14] [#]} 25. f3 $1 {[%emt 0:07:09]} Qxe3+ {[%emt 0:01:10]} 26. Qxe3 {[%emt 0:00:31]} ({Wrong is} 26. Kg2 $2 Bb4 27. Qe2 Qxe2+ 28. Nxe2 Ne3+ 29. Kg1 Nxd1 $19) 26... Nxe3 {[%emt 0:00:05]} 27. Re1 {[%emt 0:00:15]} Nc2 {[%emt 0:01:53]} 28. Re8+ {[%emt 0:02:22]} Bf8 {[%emt 0:02:27]} 29. Nxc2 {[%emt 0:00:09]} Rxc2 {[%emt 0:00:22]} 30. Ba3 {[%emt 0:00:16]} d4 $2 {[%emt 0:00:33]} (30... Rc5 31. Rd8 g6 32. Bxc5 bxc5) 31. Rxf8+ {[%emt 0:00:13] Weighted Error Value: White=0.12 (very precise) /Black=0.41} 1-0

[Event "Polish Youth G18 Championship 2023"]
[Site "Jastrzebia Gora"]
[Date "2023.03.13"]
[Round "3.5"]
[White "Hertlein, Irena"]
[Black "Uliasz, Katarzyna"]
[Result "1-0"]
[ECO "E69"]
[WhiteElo "1994"]
[BlackElo "1670"]
[Annotator "TA"]
[PlyCount "83"]
[EventDate "2023.03.11"]
[EventType "swiss"]
[EventCountry "POL"]
[SourceTitle "playchess.com"]
[Source "ChessBase"]
[SourceQuality "1"]
[TimeControl "40/5400+30:1800+30"]

{[%evp 19,82,43,43,45,50,52,39,15,41,0,10,-6,46,41,36,40,44,29,77,57,48,60,62,77,71,64,97,97,97,37,44,37,143,150,285,268,269,272,261,240,285,235,702,687,625,570,1089,1031,1953,1788,2141,1964,29982,29983,29985,29986,29988,29987,29990,29991,29991,29992,29998,29999,29999]} 1. d4 {[%emt 0:00:02]} Nf6 {[%emt 0:00:15]} 2. c4 {[%emt 0:00:23]} g6 {[%emt 0:00:06]} 3. Nf3 {[%emt 0:00:05]} Bg7 {[%emt 0:00:10]} 4. g3 {[%emt 0:00:05]} O-O {[%emt 0:00:25]} 5. Bg2 {[%emt 0:00:05]} d6 {[%emt 0:00:49]} 6. O-O {[%emt 0:00:09]} Nbd7 {[%emt 0:00:35]} 7. Nc3 {[%emt 0:00:08]} e5 {[%emt 0:01:09]} 8. e4 {[%emt 0:00:09]} c6 {[%emt 0:00:06]} 9. h3 {[%emt 0:00:04]} a5 {[%emt 0:09:01]} 10. Be3 {[%emt 0:06:19]} Re8 {[%emt 0:03:17]} 11. d5 {[%emt 0:01:10] E69: King's Indian: Fianchetto: 6...Nbd7 7 0-0 e5 8 e4 c6 9 h3.} cxd5 {[%emt 0:02:08]} 12. cxd5 {[%emt 0:19:02]} b6 {[%emt 0:10:17] [#]} 13. a3 $146 {[%emt 0:15:16] White is slightly better.} ({Predecessor:} 13. Re1 Nc5 14. Bxc5 bxc5 15. a4 Rb8 16. Nb5 Ba6 17. Bf1 Nh5 18. Nd2 Bxb5 19. axb5 {1-0 Quispe Arteaga,G (2197)-Gomez Gonzalez,J (1692) Madrid Chamartin op 6th 2017 (1)}) 13... Nc5 14. Bg5 {[%emt 0:00:07]} (14. Nd2 $5 {[%cal Rb2b4]}) 14... Ba6 {[%emt 0:10:29]} 15. Re1 {[%emt 0:00:33]} (15. Nd2 $5) 15... h6 {[%emt 0:02:05]} (15... Nd3 $11) 16. Bxf6 $14 {[%emt 0:12:02]} Bxf6 {[%emt 0:10:01]} 17. b4 {[%emt 0:00:30]} Nd3 {[%emt 0:01:47][%cal Oa5b4]} 18. Re3 {[%emt 0:05:55] [#] b5 is the strong threat.} Nb2 {[%emt 0:01:41]} (18... Nf4 $1 $11) 19. Qb3 {[%emt 0:00:29]} Nc4 {[%emt 0:02:27]} 20. Ree1 $1 {[%emt 0:00:30] aiming for b5.} axb4 21. axb4 {[%emt 0:00:18][%cal Oa1a6] Threatens to win with Rxa6!} b5 {[%emt 0:01:16]} 22. Ra2 {[%emt 0:05:50] White is more active.} Qd7 {[%emt 0:05:10]} 23. Rea1 {[%emt 0:01:44]} Qb7 {[%emt 0:01:15]} 24. Nd2 {[%emt 0:11:03]} (24. h4 $16) 24... Nxd2 $1 {[%emt 0:16:21]} 25. Rxd2 {[%emt 0:00:01]} Qb6 {[%emt 0:00:44] Black is now going downhill.} ({Better is} 25... Bd8 $14) 26. Rda2 $16 {[%emt 0:02:17]} Bg7 {[%emt 0:01:29]} (26... h5 $16 {keeps fighting.} 27. Nxb5 Qxb5) 27. Bf1 $18 {[%emt 0:02:26][%cal Bg2f1,Bf1b5,Bb5c6][%mdl 32] Black must now prevent Bxb5!} Bb7 {[%emt 0:01:10]} 28. Rxa8 {[%emt 0:01:00]} ({Less strong is} 28. Bxb5 Rxa2 29. Rxa2 Rd8 $16) 28... Bxa8 {[%emt 0:00:30] Black is weak on the light squares} 29. Bxb5 {[%emt 0:02:08]} Rc8 {[%emt 0:00:35]} 30. Ra6 {[%emt 0:03:46]} Qc7 {[%emt 0:01:19]} (30... Qd4) 31. Bc6 {[%emt 0:00:47]} Qd8 {[%emt 0:01:52]} 32. b5 {[%emt 0:01:56][%cal Bb4b5,Bb5b6,Bb6b7][%mdl 32]} f5 {[%emt 0:02:03]} 33. b6 {[%emt 0:02:16] Strongly threatening Rxa8.} fxe4 {[%emt 0:00:40]} 34. Rxa8 {[%emt 0:01:15] Intending b7 and mate.} Rxa8 {[%emt 0:00:08]} 35. Bxa8 {[%emt 0:00:03][%cal Oc3e4] White wants to mate with Nxe4!} Qxa8 {[%emt 0:00:06][%mdl 4096] Endgame KQB-KQN} 36. b7 {[%emt 0:00:22] White mates.} Qb8 {[%emt 0:00:32]} 37. Nxe4 {[%emt 0:00:50]} Kf7 {[%emt 0:01:29]} 38. Qb6 Ke8 39. Qc6+ {[%emt 0:02:29]} Kd8 {[%emt 0:01:56]} 40. Nxd6 {[%emt 0:00:00]} Bf8 {[%emt 0:00:00]} 41. Nf7+ {[%emt 0:01:19][%mdl 64] [#] Discovered Attack} Ke7 {[%emt 0:00:30]} 42. Qe6# {[%emt 0:00:06] Weighted Error Value: White=0.10 (very precise) /Black=0.35} 1-0